bitfinex/quotes_ETHUSD_20241122
["timestamp","ask_amount","ask_price","bid_price","bid_amount"]
[1732302310755,2.81312603,3285.5,3285.0,1.21763]
[1732302310944,3.04349,3285.7,3285.0,1.21763]
[1732302310945,2.81312603,3285.1,3285.0,1.21763]
[1732302311642,2.81312603,3285.1,3284.8,1.21771]
[1732302311839,2.81312603,3285.1,3284.9,1.21768]
[1732302312468,2.81312603,3285.1,3285.0,1.21765]
[1732302312993,2.81312603,3285.1,3284.9,1.21768]
[1732302313288,2.81312603,3285.1,3284.5,0.7651]
[1732302313289,2.81312603,3285.1,3284.6,1.2178]
[1732302313459,2.81312603,3284.8,3284.6,1.2178]
[1732302313788,5.85748603,3284.8,3284.3,2.2340014]
[1732302313944,2.81312603,3284.4,3284.3,1.0161014]
[1732302314580,5.85781603,3284.4,3284.3,1.0161014]
[1732302315590,3.04469,3284.4,3284.3,1.0161014]
[1732302315750,2.81312603,3284.4,3284.3,1.0161014]
[1732302316191,2.81312603,3284.4,3284.3,2.2340114]
[1732302318683,2.81312603,3284.4,3284.3,1.0161014]
[1732302319186,2.81312603,3284.7,3284.3,1.0161014]
[1732302319487,0.8235,3284.9,3284.3,2.2339914]
[1732302319488,2.81312603,3284.4,3284.3,2.2339914]
[1732302320020,2.81312603,3284.4,3284.3,1.0161014]
[1732302321422,5.85781603,3284.4,3284.3,1.0161014]
[1732302321587,2.81312603,3284.4,3284.3,1.0161014]
[1732302321982,5.85781603,3284.4,3284.3,1.0161014]
[1732302322227,6.66991603,3284.4,3284.3,1.0161014]
[1732302322900,7.21991603,3284.4,3284.3,1.0161014]
[1732302323699,3.62522603,3284.4,3284.3,1.0161014]
[1732302324224,2.81312603,3284.4,3284.3,1.0161014]
[1732302325196,5.85781603,3284.4,3284.3,1.0161014]
[1732302325392,6.64581603,3284.4,3284.3,1.0161014]
[1732302325613,3.60112603,3284.4,3284.3,1.0161014]
[1732302328524,2.81312603,3284.4,3284.3,2.2340114]
[1732302328722,2.81312603,3284.7,3284.6,1.21779]
[1732302329925,2.81312603,3284.7,3284.4,1.21786]
[1732302330125,2.81312603,3284.7,3284.5,1.21782]
[1732302330326,2.81312603,3284.7,3284.6,1.2178]
[1732302331779,2.81312603,3284.7,3284.5,1.2178]
[1732302331976,2.81312603,3284.7,3284.6,1.2178]
[1732302332140,2.81312603,3284.7,3284.4,1.52400614]
[1732302332342,2.81312603,3285.4,3285.3,1.21754]
[1732302332686,2.81312603,3285.4,3284.5,0.8184]
[1732302332687,2.81312603,3285.7,3285.1,2.03598]
[1732302332992,2.81312603,3286.0,3285.9,1.21732]
[1732302333481,3.60762603,3286.6,3285.9,1.21732]
[1732302333793,2.81312603,3286.3,3286.0,1.21726]
[1732302333974,2.81312603,3286.3,3286.2,1.21721]
[1732302335030,3.0423,3287.0,3286.4,1.21711]
[1732302335187,2.81312603,3286.8,3286.6,1.21705]
[1732302335353,2.81312603,3286.8,3286.5,1.21708]
[1732302335549,2.81312603,3286.8,3286.3,1.21717]
[1732302335797,2.81312603,3286.9,3286.5,1.21707]
[1732302336085,3.23058543,3286.9,3286.5,1.21709]
[1732302336587,2.81312603,3286.6,3286.1,1.21723]
[1732302337094,0.8311,3286.5,3285.9,1.2173]
[1732302337250,2.81312603,3286.0,3285.5,1.21745]
[1732302337451,2.81312603,3286.0,3285.7,1.21739]
[1732302338297,2.81312603,3286.0,3285.8,1.21735]
[1732302338800,2.81312603,3286.3,3285.9,1.21731]
[1732302339302,2.81312603,3286.3,3286.0,1.21727]
[1732302339663,2.81312603,3286.3,3285.9,1.2173]
[1732302340174,2.81312603,3286.3,3285.4,0.03043311]
[1732302340379,3.64422603,3286.9,3286.5,1.2171]
[1732302340595,2.81312603,3286.6,3286.3,1.21715]
[1732302340764,2.81312603,3286.9,3286.5,1.2171]
[1732302341159,2.81312603,3286.9,3286.8,1.21698]
[1732302341401,2.81312603,3287.2,3286.9,1.21694]
[1732302341599,2.81312603,3287.2,3286.9,1.21695]
[1732302341770,0.3644226,3287.1,3286.9,1.21695]
[1732302342279,2.81312603,3287.2,3287.1,1.21687]
[1732302342674,2.81312603,3287.8,3287.3,1.21677]
[1732302342874,2.81312603,3287.8,3286.9,0.03042198]
[1732302342875,0.8011,3287.9,3287.5,1.2167]
[1732302343167,3.40570817,3287.6,3287.0,1.21689]
[1732302343467,6.44750817,3287.6,3286.9,1.21695]
[1732302343660,4.20680817,3287.2,3286.5,1.21708]
[1732302343861,6.50520082,3287.1,3286.5,1.21708]
[1732302344105,6.50520082,3287.1,3286.1,0.8211]
[1732302344106,3.40570817,3287.0,3286.1,2.03832]
[1732302344306,3.40570817,3287.0,3286.6,1.21704]
[1732302344604,0.3826389,3286.9,3286.4,1.21712]
[1732302344903,0.3826389,3286.9,3286.4,1.21711]
[1732302345109,3.4250189,3286.9,3286.4,1.21711]
[1732302345397,0.3826389,3286.9,3286.4,2.43422]
[1732302345600,0.3826389,3286.9,3286.6,1.21705]
[1732302345767,0.8011,3287.2,3286.3,1.21717]
[1732302345966,3.40570817,3287.4,3287.0,1.21688]
[1732302346274,3.40570817,3287.4,3287.0,2.43376]
[1732302346474,3.04159,3287.8,3286.8,0.806]
[1732302346475,3.40570817,3287.8,3286.8,0.806]
[1732302346695,3.40570817,3287.8,3287.5,1.21672]
[1732302346891,3.40570817,3287.8,3287.6,1.21667]
[1732302347188,0.41789082,3287.8,3287.6,1.21667]
[1732302347373,8.43572317,3288.2,3287.7,1.21664]
[1732302347608,5.39454317,3288.2,3287.9,1.21658]
[1732302347817,0.53945432,3288.1,3288.0,1.21653]
[1732302348012,1.21534,3288.5,3288.0,1.21653]
[1732302348219,4.17890817,3288.6,3288.0,1.21651]
[1732302348417,3.04096,3288.5,3287.8,1.21659]
[1732302348712,3.04096,3288.5,3287.5,0.806]
[1732302348923,3.04096,3288.5,3287.9,1.21657]
[1732302349207,3.04099,3288.4,3287.9,1.21657]
[1732302349411,4.17890817,3288.6,3287.9,1.21657]
[1732302349620,4.17890817,3288.6,3287.9,1.21655]
[1732302349913,4.17890817,3288.6,3288.1,1.2165]
[1732302350119,4.17890817,3288.6,3288.2,1.21646]
[1732302350412,3.40570817,3288.6,3288.3,1.21642]
[1732302350614,3.40570817,3288.6,3288.3,2.03022]
[1732302350781,3.40570817,3288.6,3288.4,1.21639]
[1732302350982,3.40570817,3288.6,3288.5,1.21636]
[1732302351680,1.53892966,3289.7,3289.0,0.761]
[1732302351681,3.40570817,3289.4,3289.0,0.761]
[1732302352025,3.40570817,3289.9,3289.4,1.216]
[1732302352180,6.44532817,3289.9,3289.3,1.7e-07]
[1732302352376,3.40570817,3289.9,3289.4,1.216]
[1732302352676,3.40570817,3289.9,3289.6,1.21592]
[1732302352882,3.40570817,3289.9,3289.3,1.7e-07]
[1732302352883,3.74627899,3289.9,3289.3,1.7e-07]
[1732302353179,3.40570817,3289.4,3289.3,1.7e-07]
[1732302353381,7.20106817,3289.4,3289.3,1.7e-07]
[1732302354280,7.75106817,3289.4,3289.3,1.7e-07]
[1732302354480,8.29483477,3289.4,3289.3,1.7e-07]
[1732302355717,3.94947477,3289.4,3289.3,1.7e-07]
[1732302355920,3.40570817,3289.4,3289.3,1.7e-07]
[1732302356630,3.40570817,3289.4,3289.3,0.91204017]
[1732302356829,3.40570817,3289.8,3289.3,0.91204017]
[1732302356982,3.40570817,3289.8,3289.5,0.91196]
[1732302357180,3.40570817,3289.8,3289.4,0.91201]
[1732302357586,3.40570817,3289.8,3289.6,0.91196]
[1732302357923,3.40570817,3289.8,3289.5,0.91196]
[1732302358215,4.19200817,3290.2,3289.6,0.7879]
[1732302358417,3.40570817,3290.2,3289.9,1.3e-07]
[1732302359522,3.03951,3290.0,3289.9,1.3e-07]
[1732302359888,0.55,3290.0,3289.9,1.3e-07]
[1732302360313,4.62687024,3290.3,3289.9,1.3e-07]
[1732302360314,0.55,3290.2,3289.9,1.3e-07]
[1732302360485,0.55,3290.2,3289.8,0.7558]
[1732302360486,0.55,3290.2,3289.8,2.3e-07]
[1732302360684,0.55,3290.2,3289.8,1.3e-07]
[1732302361221,0.55,3290.2,3289.9,0.91186]
[1732302361431,0.55,3290.2,3289.9,1.4e-07]
[1732302361636,0.55,3290.2,3289.9,4.4e-07]
[1732302361932,0.55,3290.4,3289.9,0.91186]
[1732302362231,0.55,3290.2,3290.0,0.91183]
[1732302362400,0.55,3290.2,3289.7,0.91192025]
[1732302362710,0.55,3290.2,3289.9,0.91188]
[1732302363413,0.55,3290.2,3289.7,0.91192025]
[1732302363612,0.55,3290.2,3289.8,0.91189]
[1732302363826,0.55,3290.2,3289.7,0.91192025]
[1732302364007,3.40570817,3289.9,3289.7,2.5e-07]
[1732302364208,3.03969,3289.8,3289.7,2.5e-07]
[1732302364609,3.40570817,3289.9,3289.7,2.5e-07]
[1732302365272,3.40570817,3289.9,3289.8,0.9119]
[1732302365827,3.40570817,3289.9,3289.8,1.3102]
[1732302366235,3.40570817,3289.9,3289.8,0.3983]
[1732302366453,3.40570817,3289.9,3289.8,1.9e-07]
[1732302367633,0.55,3290.2,3289.9,0.91187]
[1732302367830,3.40570817,3290.3,3290.1,0.91181]
[1732302368129,3.40570817,3290.3,3289.8,0.03039453]
[1732302368130,0.91186996,3289.9,3289.8,0.91190019]
[1732302368633,0.942395,3291.0,3290.9,1.3e-07]
[1732302368845,6.44362817,3291.8,3290.6,0.03038369]
[1732302368846,1.59821586,3291.6,3290.6,0.03038369]
[1732302369048,3.40570817,3291.0,3290.0,0.03038257]
[1732302369355,0.91164987,3290.7,3290.6,0.91166]
[1732302369983,9.87e-06,3290.7,3290.6,0.86166]
[1732302370180,0.1464614,3291.5,3290.6,0.86166]
[1732302370181,1.66885382,3291.5,3290.6,1.46358592]
[1732302370345,1.58398246,3291.4,3291.3,0.91149]
[1732302370543,1.58398246,3291.4,3290.5,2.5e-07]
[1732302370782,1.58398246,3291.4,3291.1,5.7e-07]
[1732302371081,1.58398246,3291.4,3291.3,1.3e-07]
[1732302371243,1.58398246,3291.4,3291.0,0.91157]
[1732302371444,1.58398246,3291.4,3290.9,1.3e-07]
[1732302371678,1.58398246,3291.4,3290.0,0.91185]
[1732302371845,0.1464614,3291.5,3289.7,0.91192025]
[1732302371846,0.1464614,3291.5,3291.3,1.3e-07]
[1732302372051,0.1464614,3291.5,3290.2,0.91179]
[1732302372249,3.54377312,3291.5,3290.9,0.91158]
[1732302372554,3.03904,3290.6,3289.9,0.91185]
[1732302372858,3.03877,3290.8,3290.1,0.91182]
[1732302372859,0.55,3290.7,3290.1,0.91182]
[1732302373054,0.55,3290.8,3290.3,0.91177]
[1732302373454,3.03887,3290.7,3290.1,0.9118]
[1732302373789,0.55,3290.6,3290.1,0.182366]
[1732302374084,0.55,3290.6,3289.8,0.01521082]
[1732302374085,0.01,3290.6,3289.8,0.01521082]
[1732302374314,2.13759024,3290.3,3289.9,4.8e-07]
[1732302374591,2.13759024,3290.3,3289.9,1.1e-07]
[1732302374747,2.13759024,3290.3,3289.9,9e-08]
[1732302375099,1.51392897,3290.8,3289.6,0.42302481]
[1732302375284,1.50866897,3290.6,3289.6,0.42302481]
[1732302375485,1.52655206,3291.0,3289.6,0.42302481]
[1732302375670,4.55271897,3290.8,3289.7,0.34230248]
[1732302375858,4.90598069,3290.6,3289.7,0.34230248]
[1732302376063,1.59116981,3290.9,3289.5,3.0]
[1732302376268,1.59116981,3290.9,3289.7,0.42302481]
[1732302376483,0.55,3290.5,3289.5,3.0]
[1732302376687,6.43664172,3290.2,3289.3,1.7e-07]
[1732302376984,3.03952,3290.0,3289.3,1.7e-07]
[1732302377188,0.55,3290.1,3289.3,1.7e-07]
[1732302377383,3.03958,3290.0,3289.3,0.60801017]
[1732302377698,0.55,3290.1,3289.5,0.60798]
[1732302377904,0.55,3290.1,3289.6,0.60796]
[1732302378272,0.60800959,3289.4,3289.3,1.7e-07]
[1732302378601,0.60800959,3289.4,3289.3,0.60803017]
[1732302379101,0.60800959,3289.4,3289.3,1.7e-07]
[1732302380160,7.04538131,3289.4,3289.3,1.7e-07]
[1732302380363,7.59538131,3289.4,3289.3,1.7e-07]
[1732302380907,7.59538131,3289.4,3288.4,0.60819]
[1732302381121,3.39731172,3288.5,3288.2,0.60822]
[1732302381278,6.43829172,3288.5,3286.8,0.60849]
[1732302381466,6.43829172,3288.5,3287.7,0.60831]
[1732302381467,3.39731172,3288.1,3287.7,0.60831]
[1732302381665,3.39731172,3288.1,3288.0,0.60827]
[1732302381876,0.7743,3288.8,3288.0,0.60827]
[1732302381877,3.39731172,3288.5,3288.0,0.60827]
[1732302382102,3.39731172,3288.1,3288.0,0.60827]
[1732302382411,3.39731172,3288.1,3287.8,0.60829]
[1732302382618,3.04137,3288.0,3287.4,0.60838]
[1732302382905,3.39731172,3287.4,3287.3,0.60839]
[1732302383905,3.39731172,3287.4,3286.1,0.29238939]
[1732302383906,3.39731172,3287.4,3286.9,0.60847]
[1732302384092,0.60800959,3286.9,3286.7,0.30424]
[1732302384275,0.60800959,3286.9,3286.5,0.30427]
[1732302384481,3.39731172,3286.6,3286.5,0.30427]
[1732302384917,3.39731172,3286.6,3286.3,0.30429]
[1732302385214,3.39731172,3286.6,3285.2,0.41407584]
[1732302385215,0.55,3286.5,3285.2,0.41407584]
[1732302385398,3.39731172,3286.2,3286.1,0.3043]
[1732302385716,3.39731172,3286.2,3285.9,0.30432]
[1732302386120,3.94731172,3286.2,3286.1,0.30431]
[1732302386416,3.94731172,3286.2,3285.9,0.30432]
[1732302386417,3.94731172,3286.6,3286.5,0.30427]
[1732302386569,3.94731172,3286.6,3285.2,0.41407584]
[1732302386570,0.55,3286.5,3285.6,0.30435]
[1732302386767,0.55,3286.5,3285.7,0.330435]
[1732302386968,0.55,3286.5,3285.6,3.30435]
[1732302387211,0.55,3286.5,3286.2,0.30429]
[1732302387384,0.55,3286.5,3286.3,0.30429]
[1732302387847,3.39731172,3286.6,3286.4,0.30428]
[1732302388163,3.39731172,3286.6,3286.5,0.30427]
[1732302388732,3.39731172,3286.6,3285.8,0.30433]
[1732302388733,3.39731172,3287.4,3287.1,8.20199041]
[1732302388952,3.39731172,3287.4,3286.3,3.0]
[1732302388953,3.39731172,3287.4,3287.2,0.82019904]
[1732302389271,3.39731172,3287.3,3287.2,0.30421]
[1732302389435,3.39731172,3287.3,3287.0,0.30422]
[1732302389639,3.39731172,3287.3,3286.8,0.30424]
[1732302389949,3.39731172,3287.3,3287.0,0.30422]
[1732302390161,3.39731172,3287.3,3286.4,0.3]
[1732302390388,3.39731172,3286.8,3286.7,0.30425]
[1732302390738,3.04159,3287.8,3286.4,0.30428]
[1732302390739,3.39731172,3287.4,3286.4,0.30428]
[1732302390938,0.8151,3287.9,3286.4,0.30428]
[1732302390939,3.39731172,3287.9,3287.6,0.30416]
[1732302391167,3.39731172,3287.9,3287.7,0.30415]
[1732302391686,3.39731172,3287.9,3287.5,0.30418]
[1732302391843,3.39731172,3287.9,3287.4,0.30418]
[1732302392042,3.39731172,3287.5,3287.4,0.30419]
[1732302392442,0.8151,3288.2,3287.8,0.30415]
[1732302392443,3.39731172,3287.9,3287.8,0.30415]
[1732302392643,0.01,3288.4,3287.8,0.30415]
[1732302392838,3.40731172,3288.7,3285.5,0.55]
[1732302393034,3.39731172,3288.7,3288.4,0.30409]
[1732302393434,3.39731172,3289.1,3289.0,5e-08]
[1732302394253,3.39731172,3289.1,3288.8,9e-08]
[1732302394454,3.39731172,3289.1,3288.6,0.30407]
[1732302394768,3.94731172,3288.6,3288.5,0.30409]
[1732302394975,3.94731172,3288.6,3288.1,0.30412]
[1732302394976,0.55,3288.5,3288.1,0.30412]
[1732302395160,0.55,3288.1,3287.5,0.30417]
[1732302395392,0.55,3287.6,3287.5,0.30417]
[1732302395698,0.55,3287.9,3287.5,0.30417]
[1732302395992,0.55,3287.9,3287.8,0.30415]
[1732302396959,3.39731172,3288.4,3288.3,2.8e-07]
[1732302397273,3.94731172,3288.4,3288.3,2.6e-07]
[1732302397471,3.39731172,3288.8,3288.7,0.30407]
[1732302397679,0.01,3289.1,3288.9,7.6e-07]
[1732302398007,0.01999975,3289.1,3288.9,7.6e-07]
[1732302398163,3.04043,3289.0,3288.9,7.6e-07]
[1732302398367,0.00999975,3288.5,3288.3,2.6e-07]
[1732302398567,3.39731172,3288.4,3288.3,2.6e-07]
[1732302399070,3.39731172,3288.4,3288.3,0.30410026]
[1732302399071,3.94731172,3288.4,3288.3,0.30410026]
[1732302399456,3.94731172,3288.4,3288.3,2.6e-07]
[1732302400566,3.95731172,3288.4,3288.3,2.6e-07]
[1732302400807,8.54774132,3288.4,3288.3,2.6e-07]
[1732302401012,8.50972887,3288.4,3288.3,2.6e-07]
[1732302401306,0.55999975,3287.6,3286.9,0.30423]
[1732302401463,0.55,3287.4,3286.0,2.991]
[1732302401663,0.55,3287.4,3286.9,0.30423]
[1732302401899,3.39731172,3287.1,3286.9,0.30423]
[1732302402082,0.55,3287.0,3286.9,0.30423]
[1732302402900,3.04263,3286.7,3286.1,0.2991]
[1732302403234,0.55,3286.8,3286.3,0.30428]
[1732302403534,0.55,3286.9,3286.5,0.30426]
[1732302403685,0.55,3286.9,3286.6,0.30426]
[1732302404025,0.55,3286.9,3286.8,0.30424]
[1732302404320,0.55,3286.9,3286.8,0.60849]
[1732302405440,0.00999975,3287.4,3286.8,0.60849]
[1732302405441,0.55,3287.4,3287.2,0.6084]
[1732302405735,0.55,3287.4,3286.3,3.60857]
[1732302405736,0.00999975,3287.8,3286.3,0.60857]
[1732302405943,0.00999975,3287.8,3287.4,0.60838]
[1732302406229,0.00999975,3287.8,3286.1,0.60861]
[1732302406230,3.05159975,3287.8,3287.1,0.60843]
[1732302406429,3.04166,3287.7,3287.1,0.60843]
[1732302406617,0.00999975,3287.8,3287.2,0.6084]
[1732302406820,3.94487605,3287.5,3284.8,0.60885]
[1732302407026,0.00999975,3287.3,3287.0,0.60844]
[1732302407408,0.00999975,3287.3,3285.7,0.91219]
[1732302407409,0.00999975,3287.3,3286.8,0.60848]
[1732302407617,0.00999975,3287.3,3286.9,0.60846]
[1732302408337,0.00999975,3287.3,3285.7,0.91219]
[1732302408338,0.00999975,3287.3,3286.6,0.60852]
[1732302408511,0.00999975,3287.3,3285.6,3.3035]
[1732302408512,0.55999975,3286.9,3286.3,0.60857]
[1732302408844,0.55999975,3286.9,3285.7,0.60869]
[1732302408845,0.55,3286.9,3285.8,0.60867]
[1732302409041,0.55,3286.9,3286.6,0.60851]
[1732302409193,0.55,3287.1,3286.6,0.60851]
[1732302409392,0.00999975,3287.3,3287.0,0.60845]
[1732302409594,0.55,3287.4,3287.2,0.60841]
[1732302409917,0.55,3287.4,3287.1,0.60843]
[1732302410370,0.01999975,3287.3,3286.9,0.60847]
[1732302410535,0.00999975,3287.3,3286.1,0.60862]
[1732302410733,0.55,3287.4,3287.1,0.60843]
[1732302411083,0.7811,3287.9,3287.7,0.60832]
[1732302411383,0.00999975,3287.8,3287.5,0.60836]
[1732302411592,0.00999975,3287.8,3287.6,0.60834]
[1732302412383,0.55999975,3287.8,3287.6,0.60834]
[1732302412740,0.55999975,3287.8,3287.4,0.60837]
[1732302412955,0.00999975,3287.5,3286.3,1.21716]
[1732302413136,0.55,3287.4,3287.1,0.60842]
[1732302413351,0.00999975,3287.3,3287.1,0.60842]
[1732302413674,0.55,3287.4,3287.3,0.6084]
[1732302413832,0.55,3287.4,3287.1,0.60842]
[1732302414039,0.00999975,3287.2,3286.2,0.60859]
[1732302414245,0.55,3287.1,3286.9,0.60847]
[1732302414547,0.55,3287.1,3287.0,0.60845]
[1732302414879,0.01999975,3287.3,3287.2,0.60842]
[1732302415476,0.01999975,3287.3,3287.0,0.60845]
[1732302415677,0.01999975,3287.3,3287.1,0.60843]
[1732302415842,0.01999975,3287.3,3287.2,0.60842]
[1732302416037,0.55,3287.4,3287.3,0.6084]
[1732302416875,0.00999975,3287.9,3287.3,0.6084]
[1732302417048,0.00999975,3287.9,3287.7,0.60831]
[1732302417248,3.93487605,3288.1,3287.9,0.60829]
[1732302417448,0.00999975,3287.9,3287.8,0.6083]
[1732302417667,3.94487605,3288.1,3287.9,0.60828]
[1732302418064,3.94487605,3288.1,3287.9,1.21655]
[1732302418380,3.94487605,3288.1,3287.9,0.60827]
[1732302418889,3.94487605,3288.1,3287.9,0.60828]
[1732302419035,0.55999975,3288.0,3287.9,0.60828]
[1732302419236,3.94487605,3288.1,3288.0,0.60827]
[1732302419436,0.55,3288.0,3287.1,0.3035]
[1732302419645,4.48487605,3288.1,3288.0,0.60827]
[1732302419879,4.49487605,3288.1,3287.9,0.60829]
[1732302420339,4.49487605,3288.1,3287.7,0.60832]
[1732302420540,4.49487605,3288.1,3287.9,0.60828]
[1732302420740,4.49487605,3288.1,3287.8,0.6083]
[1732302421043,4.48487605,3288.1,3288.0,0.60827]
[1732302421483,4.49487605,3288.1,3287.9,0.60828]
[1732302421692,4.48487605,3288.1,3288.0,0.60827]
[1732302421988,3.0404,3289.1,3288.3,9e-08]
[1732302421989,0.00999975,3288.4,3288.3,9e-08]
[1732302422291,3.04038,3289.1,3288.1,0.60823]
[1732302422292,0.01,3288.9,3288.6,9e-08]
[1732302422594,2.35610552,3289.0,3288.8,0.6081]
[1732302422595,0.784,3289.0,3288.8,0.6081]
[1732302422795,0.00999975,3288.9,3288.7,0.60813]
[1732302422999,0.00999975,3288.9,3287.7,0.60832]
[1732302423000,0.00999975,3288.5,3287.7,0.60832]
[1732302423152,3.9448758,3288.5,3288.2,0.60822]
[1732302423352,3.9448758,3288.5,3288.3,0.60821]
[1732302423587,3.9448758,3288.5,3288.2,0.60822]
[1732302423976,3.9448758,3288.5,3287.7,0.60832]
[1732302424290,3.9448758,3288.5,3288.2,0.30411]
[1732302424473,3.9448758,3288.5,3288.1,0.30412]
[1732302424682,4.64444738,3288.5,3288.0,0.30413]
[1732302424863,4.64444738,3288.5,3287.8,0.30415]
[1732302424864,0.55999975,3288.1,3287.8,0.30414]
[1732302425460,0.55999975,3288.1,3288.0,0.30413]
[1732302425696,3.40473905,3288.2,3288.0,0.30413]
[1732302425991,0.55999975,3288.5,3288.4,0.30409]
[1732302426556,0.55,3288.5,3288.4,0.30409]
[1732302426813,0.55999975,3288.5,3287.8,0.30415]
[1732302426959,0.55999975,3288.5,3287.5,3.30417]
[1732302426960,0.55999975,3288.5,3287.5,0.30417]
[1732302427160,0.55999975,3288.5,3286.0,0.30431]
[1732302427161,3.40473905,3287.8,3287.7,0.30416]
[1732302428208,0.55,3288.1,3288.0,0.30413]
[1732302428681,0.55999975,3288.1,3288.0,0.30413]
[1732302429200,0.55,3288.5,3287.1,0.71828584]
[1732302429368,0.01,3288.4,3288.2,0.30411]
[1732302429710,3.40473905,3288.6,3287.5,0.30418]
[1732302429711,0.01,3288.6,3287.5,0.30418]
[1732302430006,0.30408963,3288.4,3288.3,0.3041]
[1732302430782,0.30408963,3288.4,3288.2,0.30411]
[1732302430783,0.01,3289.0,3288.9,2.2e-07]
[1732302430991,0.01999975,3289.0,3288.9,2.2e-07]
[1732302431574,0.01999975,3289.0,3288.7,1e-07]
[1732302431772,0.01999975,3289.0,3288.4,0.30409]
[1732302431976,0.01999975,3289.0,3288.9,6e-08]
[1732302432178,0.01999975,3289.0,3288.9,6.3e-07]
[1732302432356,0.01999975,3289.0,3288.5,1e-07]
[1732302432694,3.40473905,3288.7,3288.5,1e-07]
[1732302432944,3.40473905,3288.7,3288.6,0.30408]
[1732302433107,0.00999975,3288.6,3288.5,1e-07]
[1732302433256,0.55999975,3288.6,3288.5,1e-07]
[1732302433459,0.95647363,3288.6,3288.5,1e-07]
[1732302433893,0.55999975,3288.6,3288.5,1e-07]
[1732302434312,3.40473905,3288.7,3288.6,0.30408]
[1732302434505,0.01,3289.0,3288.5,0.3040901]
[1732302434708,0.00999975,3288.9,3288.7,2.1e-07]
[1732302434913,3.95473905,3288.8,3288.7,2.1e-07]
[1732302435427,3.95473905,3288.8,3288.7,0.30407021]
[1732302435583,3.95473905,3288.8,3288.7,2.1e-07]
[1732302436173,3.95473905,3288.8,3288.7,0.30407021]
[1732302436738,3.95473905,3288.8,3288.7,2.1e-07]
[1732302436906,7.47787293,3288.8,3288.7,2.1e-07]
[1732302437098,4.43725293,3288.8,3288.7,2.1e-07]
[1732302437753,7.51588119,3288.8,3288.7,2.1e-07]
[1732302437906,8.30177293,3288.8,3288.7,2.1e-07]
[1732302438107,9.88606385,3288.8,3288.7,2.1e-07]
[1732302439312,9.88606385,3288.8,3288.7,0.30407021]
[1732302439313,4.78863905,3288.8,3288.7,0.30407021]
[1732302439503,4.78863905,3288.8,3288.7,2.1e-07]
[1732302439710,7.82925905,3288.8,3288.7,2.1e-07]
[1732302440041,4.78863905,3288.8,3288.7,2.1e-07]
[1732302440249,3.40473905,3288.8,3288.7,0.30407021]
[1732302440468,0.30406978,3288.7,3288.5,0.3040801]
[1732302440621,0.30406978,3288.7,3288.6,0.30408]
[1732302441418,0.03800872,3288.7,3288.6,0.30408]
[1732302441622,3.40473905,3289.2,3289.1,0.30403]
[1732302442222,0.00999975,3289.4,3289.3,0.30401]
[1732302442439,3.40473905,3289.6,3289.3,9e-08]
[1732302442602,2.19596502,3289.9,3288.7,0.30407]
[1732302442603,1.58788502,3289.9,3289.0,0.30404]
[1732302442807,3.4147388,3290.0,3289.6,5e-08]
[1732302443149,0.16664303,3289.3,3289.0,0.30404]
[1732302443448,3.40473905,3290.0,3289.9,0.30396]
[1732302443743,0.01999975,3290.3,3290.2,6.2e-07]
[1732302444041,0.01999975,3290.3,3289.4,0.304]
[1732302444042,0.30396991,3289.7,3289.4,0.304]
[1732302444251,0.00999975,3289.5,3289.2,0.30402]
[1732302444564,3.40473905,3289.6,3289.5,0.30399]
[1732302444565,3.4147388,3289.6,3289.5,0.30399]
[1732302444715,3.4147388,3289.6,3289.4,0.30399]
[1732302445051,3.40473905,3289.6,3289.5,0.30399]
[1732302445609,0.30396991,3289.7,3289.5,0.30399]
[1732302445610,0.30396991,3289.7,3289.6,0.30398]
[1732302447018,1.54699223,3290.1,3289.5,0.60798]
[1732302447019,3.956e-05,3289.6,3289.5,0.60798]
[1732302447318,3.956e-05,3289.6,3289.5,0.25399]
[1732302447541,3.956e-05,3289.6,3289.5,0.609788]
[1732302447989,0.00999975,3289.5,3289.2,0.30401]
[1732302448114,0.00999975,3289.5,3289.4,0.304]
[1732302448450,0.55,3289.5,3289.4,0.304]
[1732302449549,1.515708,3289.6,3289.2,0.30401]
[1732302449749,1.515708,3289.6,3289.5,0.30399]
[1732302449750,2.065708,3289.6,3289.5,0.30399]
[1732302450463,0.55,3289.5,3289.2,0.30401]
[1732302450616,0.00999975,3289.4,3288.1,0.30412]
[1732302450965,0.00999975,3289.4,3288.9,0.30405]
[1732302450966,0.00999975,3289.0,3288.9,0.30405]
[1732302451143,0.56,3289.1,3288.3,0.3041]
[1732302451449,0.56,3289.1,3288.9,0.30404]
[1732302451871,0.56,3289.1,3289.0,0.30404]
[1732302452077,0.56,3289.1,3288.7,0.30406]
[1732302452374,3.95473905,3288.8,3288.7,0.30406]
[1732302452938,0.01,3289.1,3289.0,0.30404]
[1732302452939,0.56,3289.1,3289.0,0.30404]
[1732302456245,0.01999975,3289.5,3288.5,1e-07]
[1732302456444,0.01,3289.1,3289.0,0.30404]
[1732302456652,0.56,3289.1,3288.8,0.30405]
[1732302456866,0.56,3289.1,3289.0,0.30404]
[1732302457070,0.56,3289.1,3288.8,0.30405]
[1732302457276,0.00999975,3289.0,3288.9,0.30405]
[1732302457783,0.00999975,3289.0,3288.8,0.30405]
[1732302458273,0.00999975,3289.0,3288.5,1e-07]
[1732302458274,0.00999975,3289.0,3288.9,0.30405]
[1732302458748,0.56,3289.1,3289.0,0.30404]
[1732302458948,0.56,3289.1,3288.5,0.3040801]
[1732302458949,0.56,3289.1,3288.7,0.30406]
[1732302459306,0.56,3289.1,3288.9,0.30405]
[1732302459515,0.56,3289.1,3289.0,0.30404]
[1732302459803,0.55,3289.1,3289.0,0.30404]
[1732302460167,1.57866579,3290.0,3288.5,1e-07]
[1732302460168,3.40473905,3289.6,3288.5,1e-07]
[1732302460366,5.01262382,3289.9,3289.3,0.30397009]
[1732302460609,0.30396977,3289.3,3289.1,0.30403]
[1732302460794,0.13298678,3289.3,3289.2,0.60752]
[1732302460991,4.99262407,3289.9,3289.2,0.60752]
[1732302460992,3.40473905,3289.9,3289.8,6e-08]
[1732302461324,3.40473905,3289.9,3289.8,3.2e-07]
[1732302461469,3.40473905,3289.9,3289.8,3e-07]
[1732302461906,3.40473905,3289.9,3289.8,2.8e-07]
[1732302462209,3.40473905,3289.9,3289.8,2.4e-07]
[1732302462385,3.40473905,3289.9,3289.8,2.2e-07]